bitfinex/quotes_ETHUSD_20250112
["timestamp","ask_amount","ask_price","bid_price","bid_amount"]
[1736662986493,0.8252,3283.3,3282.7,5.37]
[1736662988994,0.15752133,3283.2,3282.7,5.37]
[1736662989200,0.8252,3283.1,3282.7,5.37]
[1736662992561,0.8252,3283.1,3282.4,1.20418635]
[1736663003977,0.8133,3282.9,3282.4,1.20418635]
[1736663004536,0.8133,3282.7,3282.4,1.20418635]
[1736663008810,0.8133,3282.7,3282.2,1.20418635]
[1736663009012,0.8133,3282.7,3282.2,3.33686635]
[1736663009605,0.8133,3282.7,3282.2,1.20418635]
[1736663012481,0.8133,3282.7,3282.2,3.33689635]
[1736663013646,0.8133,3282.7,3282.1,5.37]
[1736663013845,0.8021,3282.5,3282.1,5.37]
[1736663014238,0.8021,3282.3,3281.8,5.13292]
[1736663014432,0.8021,3282.3,3281.9,1.20418635]
[1736663014748,0.15706515,3282.2,3281.9,1.20418635]
[1736663015086,0.8021,3282.3,3281.9,1.20418635]
[1736663016535,6.8958,3282.3,3281.9,1.20418635]
[1736663017232,6.0937,3282.3,3282.2,0.0075]
[1736663017640,6.0937,3282.3,3282.2,2.14021]
[1736663017979,6.0937,3282.3,3282.2,7.51021]
[1736663023389,6.0937,3282.3,3282.2,5.3775]
[1736663027665,6.0937,3282.3,3282.2,6.23863159]
[1736663031271,6.0937,3282.3,3282.2,5.3775]
[1736663037777,6.0937,3282.3,3282.2,5.37]
[1736663042098,6.8698,3282.3,3282.2,5.37]
[1736663042483,7.02154159,3282.3,3282.2,5.37]
[1736663047843,6.24544159,3282.3,3282.2,5.37]
[1736663048035,6.24544159,3282.3,3281.9,4.20418635]
[1736663053968,6.24544159,3282.3,3281.8,5.37]
[1736663053969,0.7761,3282.2,3281.8,5.37]
[1736663054151,0.7761,3282.0,3281.6,9.20358019]
[1736663054362,0.15144105,3281.9,3281.6,9.20358019]
[1736663054589,6.24514105,3281.9,3281.6,5.37]
[1736663054845,0.7761,3281.8,3281.2,5.4173964]
[1736663055053,0.7761,3281.7,3281.2,5.4173964]
[1736663055249,0.7761,3281.6,3281.2,5.4173964]
[1736663055437,6.8698,3281.6,3281.2,5.4173964]
[1736663055618,0.15093094,3281.5,3281.2,5.4173964]
[1736663055822,6.24463094,3281.5,3281.2,5.4173964]
[1736663057739,6.24463094,3281.5,3281.3,1.20418635]
[1736663058972,0.7761,3281.4,3281.2,0.0473964]
[1736663059173,0.15051437,3281.3,3281.2,0.0473964]
[1736663059397,6.24421437,3281.3,3281.2,0.0473964]
[1736663063098,7.22851437,3281.3,3281.2,0.0473964]
[1736663068997,9.36181437,3281.3,3281.2,0.0473964]
[1736663072252,7.22851437,3281.3,3281.2,0.0473964]
[1736663072464,8.16468481,3281.3,3281.2,0.0473964]
[1736663077148,10.29798481,3281.3,3281.2,0.0473964]
[1736663116784,15.60798481,3281.3,3281.2,0.0473964]
[1736663119202,15.60798481,3281.3,3281.2,0.04820297]
[1736663126037,14.82868481,3281.3,3281.2,0.04820297]
[1736663126642,14.62368481,3281.3,3281.2,0.04820297]
[1736663126945,13.89151437,3281.3,3281.2,0.04820297]
[1736663128700,8.58151437,3281.3,3281.2,0.04820297]
[1736663130619,9.37871437,3281.3,3281.2,0.04820297]
[1736663144622,8.58151437,3281.3,3281.2,0.04820297]
[1736663153036,8.58151437,3281.3,3281.2,0.85870297]
[1736663153891,20.06037887,3281.3,3281.2,2.97e-06]
[1736663154078,20.06037887,3281.3,3280.2,4.64642555]
[1736663154079,2.13395,3280.3,3280.2,4.64642555]
[1736663154281,8.57941301,3280.3,3280.2,0.8105]
[1736663154682,2.13406,3280.2,3279.7,0.8105]
[1736663155010,0.14769954,3280.1,3279.7,0.8105]
[1736663159914,2.28178954,3280.1,3279.7,0.8105]
[1736663160752,0.14769954,3280.1,3279.7,0.8105]
[1736663167690,2.13436,3279.7,3279.1,4.65662555]
[1736663167890,6.0937,3279.7,3279.1,4.65662555]
[1736663168029,0.1465702,3279.6,3279.1,0.8207]
[1736663168337,6.2402702,3279.6,3279.1,0.8207]
[1736663170383,8.3746902,3279.6,3279.1,0.8207]
[1736663173534,6.2402702,3279.6,3279.1,0.8207]
[1736663181410,8.3746802,3279.6,3279.1,0.8207]
[1736663189407,9.23254822,3279.6,3279.1,0.8207]
[1736663190983,2.13448,3279.5,3279.1,0.8207]
[1736663191184,8.22818,3279.5,3279.1,0.8207]
[1736663191384,0.14617282,3279.4,3279.1,0.8207]
[1736663191621,6.23987282,3279.4,3279.1,0.8207]
[1736663191823,8.37441282,3279.4,3279.1,0.8207]
[1736663192203,8.37441282,3279.4,3278.8,2.01570582]
[1736663193340,7.2458209,3279.4,3278.8,0.8085]
[1736663194046,2.96191,3279.2,3278.6,6.1785]
[1736663194194,9.05561,3279.2,3278.6,6.1785]
[1736663194396,0.14597398,3279.1,3278.6,6.1785]
[1736663194618,6.23967398,3279.1,3278.6,0.8085]
[1736663195241,7.15983238,3279.1,3278.6,0.8085]
[1736663199469,7.15983238,3279.1,3278.6,2.01570582]
[1736663200951,6.23967398,3279.1,3278.6,2.01570582]
[1736663205758,8.37440398,3279.1,3278.6,2.01570582]
[1736663206866,8.37440398,3279.1,3278.6,0.8085]
[1736663208249,6.23967398,3279.1,3278.6,2.01570582]
[1736663212865,8.37440398,3279.1,3278.6,2.01570582]
[1736663213360,9.21184438,3279.1,3278.6,2.01570582]
[1736663213853,0.7752,3279.0,3278.6,2.01570582]
[1736663214051,6.8689,3279.0,3278.6,2.01570582]
[1736663214253,0.14569165,3278.9,3278.6,2.01570582]
[1736663214452,6.23939165,3278.9,3278.6,2.01570582]
[1736663222602,0.7728,3278.8,3278.5,0.31800301]
[1736663222844,6.0937,3278.8,3278.5,0.31800301]
[1736663223043,0.91837917,3278.7,3278.5,0.31800301]
[1736663223349,7.01207917,3278.7,3278.5,0.31800301]
[1736663224753,7.01207917,3278.7,3278.4,0.625]
[1736663224929,0.70120792,3278.6,3278.4,0.625]
[1736663225256,3.0532985,3278.5,3278.4,0.625]
[1736663225551,9.1469985,3278.5,3278.4,0.625]
[1736663226087,10.35420432,3278.5,3278.4,0.625]
[1736663226555,9.1469985,3278.5,3278.4,0.625]
[1736663226751,10.25253972,3278.5,3278.4,0.625]
[1736663226906,11.45974554,3278.5,3278.4,0.625]
[1736663227262,14.45974554,3278.5,3278.4,0.625]
[1736663230628,19.76974554,3278.5,3278.4,0.625]
[1736663231463,18.56253972,3278.5,3278.4,0.625]
[1736663243574,18.81253972,3278.5,3278.4,0.625]
[1736663245254,18.56253972,3278.5,3278.4,0.625]
[1736663249083,19.12003972,3278.5,3278.4,0.625]
[1736663250307,19.52241787,3278.5,3278.4,0.625]
[1736663250675,2.91081,3278.2,3278.0,0.1669764]
[1736663250901,2.91081,3278.2,3275.9,3.83592555]
[1736663250902,0.7755,3276.4,3275.9,3.83592555]
[1736663251114,2.13663,3276.2,3275.9,3.83592555]
[1736663251405,0.207,3276.1,3275.8,0.7965]
[1736663251571,6.0937,3276.1,3275.8,0.7965]
[1736663251778,6.0937,3276.1,3276.0,1.20971707]
[1736663251999,6.0437,3276.1,3276.0,1.20971707]
[1736663252280,6.0437,3276.1,3275.9,3.34651707]
[1736663252466,6.0437,3276.1,3276.0,2.50497562]
[1736663252687,6.0437,3276.1,3276.0,2.48945393]
[1736663253673,6.0437,3276.1,3276.0,5.51997562]
[1736663253901,6.0437,3276.1,3276.0,5.48945393]
[1736663254382,6.0437,3276.1,3276.0,5.50445393]
[1736663254777,6.0437,3276.1,3276.0,6.30095393]
[1736663257509,6.0437,3276.1,3276.0,11.67095393]
[1736663258409,6.0437,3276.1,3276.0,21.02095393]
[1736663260783,6.0437,3276.1,3276.0,23.57560421]
[1736663264383,6.0437,3276.1,3276.0,27.41152976]
[1736663265527,6.0437,3276.1,3276.0,23.57560421]
[1736663266017,6.0437,3276.1,3276.0,27.40609434]
[1736663266221,6.0437,3276.1,3276.0,23.57560421]
[1736663266725,0.7862,3278.2,3276.7,0.0075]
[1736663267019,0.23752416,3278.1,3277.5,0.796]
[1736663267423,0.1337122,3278.0,3277.5,0.796]
[1736663270641,0.207,3278.1,3277.5,0.796]
[1736663272143,0.211,3278.0,3277.5,0.796]
[1736663273213,0.211,3278.0,3277.5,1.089183]
[1736663275646,0.211,3278.0,3277.5,3.224953]
[1736663278628,0.211,3278.0,3277.5,1.089183]
[1736663283257,0.211,3278.0,3277.5,3.224933]
[1736663283756,0.211,3278.0,3277.5,3.25544026]
[1736663283957,0.211,3278.0,3277.5,1.089183]
[1736663284265,0.03052416,3278.3,3277.5,1.089183]
[1736663284449,0.13417359,3277.9,3277.5,0.796]
[1736663284604,0.211,3278.0,3277.5,0.796]
[1736663286107,0.8253,3277.9,3277.3,5.37]
[1736663286346,2.13564,3277.7,3277.3,5.37]
[1736663286565,0.03052416,3277.6,3277.3,5.37]
[1736663288630,6.13282416,3277.6,3277.3,5.37]
[1736663288853,0.1339827,3277.5,3276.9,0.8218]
[1736663289039,6.26680686,3277.5,3276.9,0.8218]
[1736663289239,6.2362827,3277.5,3276.9,0.8218]
[1736663291088,2.99166416,3277.4,3276.8,5.37]
[1736663291288,9.22764998,3277.4,3276.8,5.37]
[1736663291452,2.13591,3277.3,3276.8,5.37]
[1736663291653,2.37750416,3277.2,3276.8,5.37]
[1736663291898,3.82267374,3277.1,3276.8,5.37]
[1736663292076,0.03052416,3277.0,3276.8,5.37]
[1736663292282,6.26599968,3277.0,3276.8,5.37]
[1736663292593,6.23547552,3277.0,3276.8,5.37]
[1736663293578,6.23547552,3277.0,3276.4,0.55]
[1736663295357,0.03052416,3276.9,3276.3,5.37]
[1736663295684,0.03052416,3276.9,3276.3,6.202846]
[1736663295685,0.13309601,3276.8,3276.3,6.202846]
[1736663295885,6.23539601,3276.8,3276.4,0.03051749]
[1736663296080,6.23539601,3276.8,3276.3,6.202846]
[1736663296286,6.23539601,3276.8,3276.4,0.03051795]
[1736663297285,6.23539601,3276.8,3276.3,6.202846]
[1736663298077,6.23539601,3276.8,3276.4,0.33733944]
[1736663299801,0.7844,3276.7,3276.3,5.37]
[1736663301715,6.8867,3276.7,3276.3,5.37]
[1736663303986,0.13244931,3276.6,3276.3,5.37]
[1736663304211,6.23474931,3276.6,3276.3,5.37]
[1736663317924,6.23474931,3276.6,3276.3,7.50655]
[1736663318201,6.23474931,3276.6,3276.4,0.87158518]
[1736663321166,6.23474931,3276.6,3276.3,7.50655]
[1736663323380,6.23474931,3276.6,3276.3,5.37]
[1736663327110,6.23474931,3276.6,3276.3,5.40051877]
[1736663328320,6.23474931,3276.6,3276.3,5.37]
[1736663329093,6.23474931,3276.6,3276.5,5.71642]
[1736663329303,6.23474931,3276.6,3276.5,7.88547405]
[1736663329505,6.1023,3276.6,3276.5,13.25547405]
[1736663330619,6.1023,3276.6,3276.5,17.08595573]
[1736663331213,6.1023,3276.6,3276.5,13.25547405]
[1736663331415,6.1023,3276.6,3276.5,6.1713]
[1736663331615,6.1023,3276.6,3276.5,5.37]
[1736663341550,6.1023,3276.6,3276.2,4.69108462]
[1736663343414,6.1023,3276.6,3276.1,5.37]
[1736663344114,6.3123,3276.6,3276.1,5.37]
[1736663344484,0.0978043,3276.5,3276.1,7.50667]
[1736663345273,0.0978043,3276.5,3276.2,2.55447462]
[1736663345532,6.3123,3276.6,3276.2,2.58499404]
[1736663345668,6.3123,3276.6,3276.2,4.72157404]
[1736663345872,6.1023,3276.6,3276.5,2.55447462]
[1736663346198,6.1023,3276.6,3276.5,4.69089462]
[1736663346402,6.1023,3276.6,3276.5,5.2939127]
[1736663346601,6.1023,3276.6,3276.5,5.26339462]
[1736663346800,6.1023,3276.6,3276.5,5.86675408]
[1736663347526,6.1023,3276.6,3276.5,12.00695408]
[1736663347827,6.1023,3276.6,3276.5,15.83743576]
[1736663348124,6.1023,3276.6,3276.5,12.00695408]
[1736663348838,6.1023,3276.6,3276.5,15.01445408]
[1736663349517,6.1023,3276.6,3276.5,19.48970056]
[1736663351614,6.1023,3276.6,3276.5,15.01445408]
[1736663352416,6.1023,3276.6,3276.5,19.48970056]
[1736663353376,6.1023,3276.6,3276.5,28.28970056]
[1736663353584,6.1023,3276.6,3276.5,23.81445408]
[1736663354395,6.1023,3276.6,3276.5,28.28970056]
[1736663354744,6.1023,3276.6,3276.5,23.81445408]
[1736663355541,6.1023,3276.6,3276.5,22.46857873]
[1736663361940,6.1023,3276.6,3276.5,26.30595492]
[1736663367135,6.1023,3276.6,3276.5,22.46857873]
[1736663367464,6.1023,3276.6,3276.5,21.25997946]
[1736663367776,6.1023,3276.6,3276.5,21.36703221]
[1736663367953,6.1023,3276.6,3276.5,21.08751927]
[1736663368466,6.1023,3276.6,3276.5,21.08001927]
[1736663369351,6.1023,3276.6,3276.5,21.08751927]
[1736663371330,6.1023,3276.6,3276.5,12.28751927]
[1736663371545,6.1023,3276.6,3276.5,14.77997249]
[1736663375266,6.1023,3276.6,3276.5,14.78747249]
[1736663375670,6.1023,3276.6,3276.5,15.60197249]
[1736663375864,6.1023,3276.6,3276.5,19.43898543]
[1736663376851,6.1023,3276.6,3276.5,15.60197249]
[1736663383353,6.1023,3276.6,3276.5,24.40197249]
[1736663386541,6.1023,3276.6,3276.5,25.61057176]
[1736663386746,6.1023,3276.6,3276.5,30.08581824]
[1736663387367,6.1023,3276.6,3276.5,28.87721897]
[1736663389691,6.1023,3276.6,3276.5,30.08581824]
[1736663390393,6.1023,3276.6,3276.5,24.40197249]
[1736663401723,6.1023,3276.6,3276.5,23.58747249]
[1736663402984,6.1023,3276.6,3276.5,21.82137322]
[1736663403188,6.1023,3276.6,3276.5,23.02997249]
[1736663403489,6.1023,3276.6,3276.5,27.51904804]
[1736663403694,6.9252,3276.6,3276.5,25.58409482]
[1736663404326,6.9252,3276.6,3276.5,21.09501927]
[1736663406430,6.9252,3276.6,3276.5,24.94201259]
[1736663406623,6.9252,3276.6,3276.5,21.09501927]
[1736663407330,6.9252,3276.6,3276.5,3.8466776]
[1736663407628,7.61772,3276.6,3276.3,9.2166776]
[1736663407832,0.8229,3276.5,3276.3,9.2166776]
[1736663408000,0.8229,3276.5,3276.3,5.37]
[1736663408721,0.8229,3276.5,3276.3,6.57859927]
[1736663416978,6.9252,3276.5,3276.3,6.57859927]
[1736663418796,6.9252,3276.5,3276.4,2.70899]
[1736663419394,6.9252,3276.5,3276.4,8.07899]
[1736663427029,6.1023,3276.5,3276.4,8.07899]
[1736663429578,6.1023,3276.5,3276.4,12.78794893]
[1736663430511,6.1023,3276.5,3276.4,12.2166776]
[1736663430825,6.8742,3276.5,3276.4,5.37]
[1736663431187,6.8742,3276.5,3276.1,8.37]
[1736663431622,7.0822,3276.5,3276.1,8.37]
[1736663431924,7.0822,3276.5,3276.1,5.37]
[1736663433308,0.7811,3276.4,3276.1,5.37]
[1736663433631,0.7811,3276.3,3276.1,5.37]
[1736663433803,6.8834,3276.3,3276.1,5.37]
[1736663438121,6.8834,3276.3,3276.2,1.20859927]
[1736663439148,6.8834,3276.3,3276.1,5.37]
[1736663439916,0.08660116,3276.2,3276.1,5.37]
[1736663440112,6.8834,3276.3,3276.1,5.37]
[1736663441153,6.1023,3276.3,3276.2,3.34521927]
[1736663441356,6.1023,3276.3,3276.2,4.2167412]
[1736663441943,6.1023,3276.3,3276.2,3.34521927]
[1736663443160,6.18859796,3276.3,3276.2,9.28021927]
[1736663443321,6.1023,3276.3,3276.2,9.28021927]
[1736663449366,6.1023,3276.3,3276.2,12.29521927]
[1736663449572,6.1023,3276.3,3276.2,14.82546888]
[1736663450064,6.1023,3276.3,3276.2,19.31454443]
[1736663450267,6.1023,3276.3,3276.2,14.82546888]
[1736663450564,6.1023,3276.3,3276.2,23.62546888]
[1736663451864,6.1023,3276.3,3276.2,28.91185378]
[1736663452365,6.1023,3276.3,3276.2,23.62546888]
[1736663453869,6.1023,3276.3,3276.2,28.91185378]
[1736663454451,6.1023,3276.3,3276.2,23.62546888]
[1736663454783,6.1023,3276.3,3276.2,28.91185378]
[1736663454937,0.8174,3278.7,3277.4,0.0225]
[1736663455137,1.20859927,3278.8,3277.7,1.20859927]
[1736663455138,0.8174,3278.4,3277.7,1.20859927]
[1736663455388,0.8174,3278.2,3277.4,0.0225]
[1736663455638,0.8174,3278.0,3277.4,5.3925]
[1736663456674,0.8174,3277.8,3277.4,5.37]
[1736663456834,0.8174,3277.6,3277.4,5.37]
[1736663457038,0.8174,3277.5,3277.4,5.37]
[1736663458240,0.90477043,3277.5,3277.4,5.37]
[1736663459555,0.8174,3277.5,3277.4,5.37]
[1736663461243,0.8174,3277.5,3277.2,5.37]
[1736663462475,0.207,3277.7,3277.2,7.50595]
[1736663462645,0.207,3277.7,3277.3,0.03050983]
[1736663463879,0.207,3277.7,3277.2,5.37]
[1736663464647,0.207,3277.7,3277.3,0.5725]
[1736663466071,0.207,3277.7,3277.2,5.37]
[1736663466270,0.8294,3277.6,3277.2,5.37]
[1736663466551,0.8294,3277.4,3276.8,8.37]
[1736663470186,1.0364,3277.4,3277.1,0.5575]
[1736663471554,0.207,3277.4,3277.1,2.69352]
[1736663474394,0.207,3277.4,3277.1,2.7240315]
[1736663475354,0.207,3277.4,3277.2,0.52770433]
[1736663475550,0.207,3277.4,3277.2,2.66366433]
[1736663476195,0.207,3277.4,3277.2,5.37]
[1736663477455,0.207,3277.4,3277.2,7.53645156]
[1736663477793,0.207,3277.4,3277.3,2.1359]
[1736663478559,0.207,3277.4,3277.2,5.37]
[1736663481578,0.207,3277.4,3277.2,5.40051038]
[1736663481804,0.207,3277.4,3277.2,6.4652146]
[1736663481975,0.207,3277.4,3277.2,8.57066422]
[1736663483172,0.207,3277.4,3277.2,5.37]
[1736663483377,0.8174,3277.3,3277.2,5.37]
[1736663493334,0.8174,3277.3,3277.2,6.57863607]
[1736663494032,0.8174,3277.3,3277.2,1.20863607]
[1736663497815,0.8174,3277.3,3277.0,5.37]
[1736663498003,0.03052416,3277.2,3277.0,5.37]
[1736663501337,0.8174,3277.3,3277.0,6.57863607]
[1736663501743,0.207,3277.4,3277.2,1.20863607]
[1736663502736,0.8248,3277.9,3277.2,1.20863607]
[1736663502943,0.2938748,3277.8,3277.2,1.20863607]
[1736663503314,0.2938748,3277.8,3277.1,2.13602]
[1736663503942,0.8248,3277.7,3277.1,2.13602]
[1736663505037,0.85532416,3277.7,3277.1,2.13602]
[1736663506017,0.85532416,3277.7,3277.1,7.50602]
[1736663506218,0.8248,3277.7,3277.1,7.50602]
[1736663506813,0.85532416,3277.7,3277.1,7.50602]
[1736663507014,0.8248,3277.7,3277.1,7.50602]
[1736663507727,0.8248,3277.7,3277.1,5.37]
[1736663507927,0.03052416,3277.6,3277.1,5.37]
[1736663508358,0.8248,3277.7,3277.1,5.37]
[1736663509347,0.03052416,3277.6,3277.1,5.37]
[1736663509546,0.8248,3277.7,3277.1,5.37]
[1736663515075,0.03052416,3277.6,3277.1,5.37]
[1736663515293,2.16623416,3277.6,3277.1,5.37]
[1736663515456,1.09850342,3277.5,3277.1,5.37]
[1736663515778,0.03052416,3277.4,3277.1,5.37]
[1736663516884,0.0867447,3277.3,3277.1,5.37]
[1736663517245,1.0064,3277.5,3277.1,5.37]
[1736663517784,0.03052416,3277.4,3277.1,5.37]
[1736663518746,0.0867447,3277.3,3277.1,5.37]
[1736663518947,1.0064,3277.5,3277.1,5.37]
[1736663521692,7.109,3277.5,3277.1,5.37]
[1736663524285,0.03052416,3277.4,3277.1,5.37]
[1736663524597,6.13312416,3277.4,3277.1,5.37]
[1736663524893,7.03012342,3277.4,3277.1,5.37]
[1736663525063,9.16597342,3277.4,3277.1,5.37]
[1736663525984,0.7659,3277.2,3277.1,5.37]
[1736663526190,6.8685,3277.2,3277.1,5.37]
[1736663526995,6.1026,3277.2,3277.1,5.37]
[1736663530191,6.1026,3277.2,3276.9,1.20893041]
[1736663533889,0.207,3277.1,3276.9,1.20893041]
[1736663537696,0.207,3277.1,3276.9,2.74682345]
[1736663537896,0.207,3277.1,3277.0,0.7678]
[1736663539814,6.3096,3277.1,3276.9,1.20893041]
[1736663540128,0.08650799,3277.0,3276.9,1.20893041]
[1736663540441,6.18910799,3277.0,3276.9,1.20893041]
[1736663549953,6.18910799,3277.0,3276.8,5.37]
[1736663550179,6.18910799,3277.0,3276.9,1.20893041]
[1736663557228,6.18910799,3277.0,3276.9,2.82360345]
[1736663558263,6.18910799,3277.0,3276.9,1.20893041]
[1736663564858,6.18910799,3277.0,3276.9,2.59653041]
[1736663565370,6.1026,3277.0,3276.9,6.43586232]
[1736663565749,6.1026,3277.0,3276.9,8.57202232]
[1736663565951,6.1026,3277.0,3276.9,13.94202232]
[1736663566153,6.1026,3277.0,3276.9,16.21622455]
[1736663566348,6.1026,3277.0,3276.9,17.42515496]
[1736663566738,6.1026,3277.0,3276.9,25.38582305]
[1736663568542,6.1026,3277.0,3276.9,29.87117013]
[1736663570690,6.1026,3277.0,3276.9,25.38582305]
[1736663574944,6.1026,3277.0,3276.9,26.80850407]
[1736663575145,6.1026,3277.0,3276.9,27.20983448]
[1736663575444,6.1026,3277.0,3276.9,23.36929264]
[1736663576080,6.1026,3277.0,3276.9,20.65313264]
[1736663576282,6.1026,3277.0,3276.9,18.37893041]
[1736663578099,6.1026,3277.0,3276.9,9.57893041]
[1736663586060,6.1026,3277.0,3276.6,5.37]
[1736663586259,0.82682416,3276.9,3276.6,5.37]
[1736663586460,6.92942416,3276.9,3276.6,5.37]
[1736663586777,0.08371315,3276.8,3276.6,5.37]
[1736663587077,0.11423731,3276.8,3276.6,5.37]
[1736663587265,0.7695,3276.7,3276.4,1.20893041]
[1736663587465,0.1141492,3276.6,3276.4,1.20893041]
[1736663587682,0.08362504,3276.6,3276.4,1.20893041]
[1736663595374,0.08362504,3276.6,3276.4,4.21694845]
[1736663595579,0.08362504,3276.6,3276.5,3.50472]
[1736663596514,6.1026,3276.7,3276.6,2.13636]
[1736663596700,6.1026,3276.7,3276.6,3.34529041]
[1736663597510,6.1026,3276.7,3276.6,3.92529041]
[1736663597815,6.1026,3276.7,3276.6,4.48605426]
[1736663598816,6.1026,3276.7,3276.6,9.85605426]
[1736663602194,6.1026,3276.7,3276.6,12.85605426]
[1736663603416,6.1026,3276.7,3276.6,13.61355426]
[1736663603644,6.1026,3276.7,3276.6,14.82248467]
[1736663603844,6.1026,3276.7,3276.6,18.66302651]
[1736663604185,6.1026,3276.7,3276.6,14.82248467]
[1736663605145,6.1026,3276.7,3276.6,23.62248467]
[1736663607089,6.1026,3276.7,3276.6,24.24209895]
[1736663607719,6.1026,3276.7,3276.6,28.71890273]
[1736663608988,6.1026,3276.7,3276.6,24.24209895]
[1736663609600,6.1026,3276.7,3276.6,28.71820869]
[1736663611224,6.1026,3276.7,3276.6,24.24209895]
[1736663613531,6.1026,3276.7,3276.6,28.71703315]
[1736663613825,6.1026,3276.7,3276.6,24.24209895]
[1736663615316,5.12297311,3276.7,3276.6,24.24209895]
[1736663615712,0.7865,3277.9,3277.8,1.20893041]
[1736663616088,0.87096889,3277.9,3277.8,1.20893041]
[1736663616293,0.7865,3277.9,3277.8,1.20893041]
[1736663617503,0.7865,3277.9,3277.8,3.92450041]
[1736663618530,0.8216,3278.2,3277.9,2.693]
[1736663618732,0.8216,3278.2,3278.1,1.20893041]
[1736663632334,0.8259,3278.4,3278.1,1.20893041]
[1736663634449,0.8259,3278.4,3278.1,2.13611745]
[1736663634743,0.8259,3278.4,3278.3,1.20893041]
[1736663634946,0.8259,3278.6,3278.4,0.5575]
[1736663635642,0.8259,3278.6,3278.2,5.37]
[1736663635844,0.8259,3278.4,3278.2,5.37]
[1736663638340,0.08532034,3278.3,3278.2,5.37]
[1736663638641,0.8259,3278.4,3278.2,5.37]
[1736663643124,0.81502416,3278.3,3278.2,5.37]
[1736663643422,2.95027416,3278.3,3278.2,5.37]
[1736663643856,0.7845,3278.2,3277.5,5.37]
[1736663644071,0.03052416,3278.1,3277.5,5.37]
[1736663644355,0.7845,3278.0,3277.5,5.37]
[1736663644554,0.7845,3277.8,3277.5,5.37]
[1736663644725,0.03052416,3277.7,3277.5,5.37]
[1736663645122,0.7845,3277.6,3277.2,5.37]
[1736663645323,0.03052416,3277.5,3277.2,5.37]
[1736663645520,0.7845,3277.4,3277.2,5.37]
[1736663653869,0.03052416,3277.3,3276.7,5.3775]
[1736663654278,0.03052416,3277.3,3276.8,1.20893041]
[1736663654779,0.08440517,3277.2,3276.8,1.20893041]
[1736663654944,0.08440517,3277.2,3277.0,1.20893041]
[1736663655145,0.7845,3277.4,3277.0,1.20893041]
[1736663655580,0.03052416,3277.3,3276.8,1.00876443]
[1736663655787,0.03052416,3277.3,3276.7,5.37]
[1736663655788,0.03052416,3277.3,3276.9,1.20893041]
[1736663657462,0.7845,3277.4,3276.9,1.20893041]
[1736663658844,0.03052416,3277.3,3276.9,1.20893041]
[1736663660063,0.71502416,3277.4,3276.9,1.20893041]
[1736663668121,0.0843541,3277.3,3276.9,1.20893041]
[1736663670738,0.0843541,3277.3,3276.7,6.57893041]
[1736663670904,0.0843541,3277.3,3276.8,1.00725943]
[1736663671305,0.205,3277.2,3276.8,1.00725943]
[1736663671910,0.205,3277.2,3276.9,1.20893041]
[1736663672636,0.205,3277.2,3277.1,1.20893041]
[1736663672815,0.781,3277.8,3277.1,1.20893041]
[1736663673010,0.205,3277.7,3277.3,1.20893041]
[1736663673625,0.205,3277.7,3277.1,1.20893041]
[1736663675844,6.3074,3277.7,3277.1,1.20893041]
[1736663676715,6.3074,3277.7,3277.1,6.57893041]
[1736663683208,0.08398865,3277.6,3277.1,6.57893041]
[1736663685246,0.08398865,3277.6,3277.1,7.52711245]
[1736663686249,0.08398865,3277.6,3277.1,9.66312245]
[1736663686641,6.3074,3277.7,3277.1,9.66312245]
[1736663689852,6.1024,3277.7,3277.1,9.66312245]
[1736663690058,0.205,3277.6,3277.1,9.66312245]
[1736663693058,6.1024,3277.7,3277.5,1.20893041]
[1736663693423,0.0839036,3277.6,3277.5,1.20893041]
[1736663693624,6.1024,3277.7,3277.5,1.20893041]
[1736663698959,6.1024,3277.7,3277.4,6.1786]
[1736663699460,6.1024,3277.7,3277.4,5.37]
[1736663699624,0.08409879,3277.6,3277.4,5.37]
[1736663710554,0.08409879,3277.6,3277.5,0.7642]
[1736663711919,0.08409879,3277.6,3277.4,5.37]
[1736663713516,0.75055825,3277.6,3277.4,5.37]
[1736663713794,2.95087,3277.5,3277.4,5.37]
[1736663713993,9.05327,3277.5,3277.4,5.37]
[1736663714178,2.13603,3277.1,3277.0,3.83523783]
[1736663714389,0.8151,3277.0,3276.6,5.37]
[1736663714695,2.13619,3276.9,3276.3,10.41416824]
[1736663714895,2.22013018,3276.9,3276.3,6.57893041]
[1736663715104,0.8151,3276.8,3276.2,3.83523783]
[1736663715270,6.9175,3276.8,3276.2,3.83523783]
[1736663715461,0.08345301,3276.7,3276.2,3.83523783]
[1736663715657,0.08345301,3276.7,3276.1,1.20893041]
[1736663716670,2.21977301,3276.7,3276.1,1.20893041]
[1736663717469,0.8151,3276.6,3276.1,1.20893041]
[1736663717772,7.00062369,3276.6,3276.1,1.20893041]
[1736663726701,0.205,3276.5,3276.3,1.20893041]
[1736663727009,0.08280078,3276.4,3276.3,1.20893041]
[1736663727510,6.1024,3276.6,3276.3,4.17328041]
[1736663727705,6.1024,3276.6,3276.5,1.20893041]
[1736663728211,6.18502856,3276.6,3276.5,1.20893041]
[1736663728410,6.18502856,3276.6,3276.5,7.12902345]
[1736663728704,6.18502856,3276.6,3276.5,13.32682345]
[1736663729472,6.1024,3276.6,3276.5,13.32682345]
[1736663739575,6.1024,3276.6,3276.5,22.12682345]
[1736663740217,6.1024,3276.6,3276.5,25.96206128]
[1736663753083,6.1024,3276.6,3276.5,27.17099169]
[1736663753550,6.1024,3276.6,3276.5,23.33575386]
[1736663753987,0.7961,3277.9,3277.6,0.0075]
[1736663754303,0.7961,3277.9,3277.8,1.20893041]
[1736663757623,0.7961,3277.9,3277.8,1.78143041]
[1736663757793,0.205,3278.3,3277.9,0.58]
[1736663758115,0.205,3278.3,3278.1,1.20893041]
[1736663758294,0.14194932,3278.2,3278.1,1.20893041]
[1736663758497,0.205,3278.3,3278.1,1.20893041]
[1736663758891,0.7961,3278.5,3278.1,1.20893041]
[1736663759209,1.0011,3278.5,3278.1,1.20893041]
[1736663759582,0.7961,3278.4,3278.1,0.5575]